fUSD/lending_fUSD_20251223
["ID","MTS","AMOUNT","RATE_DAILY","PERIOD"]
[399571225,1766508406180,-1083.440134,0.00038959,60]
[399571226,1766508406221,-1083.440133,0.00038959,60]
[399571227,1766508406262,-1360.38408293,0.00038986,120]
[399571228,1766508406299,-500.0,0.00039,120]
[399571229,1766508406337,-546.97934075,0.00039041,120]
[399571230,1766508406377,-6773.0,0.00039041,120]
[399571231,1766508406417,-6773.0,0.00039041,120]
[399571232,1766508406457,-6773.0,0.00039041,120]
[399571233,1766508406498,-6773.0,0.00039041,120]
[399571234,1766508406539,-6773.0,0.00039041,120]
[399571235,1766508406577,-6773.0,0.00039041,120]
[399571236,1766508406613,-6773.0,0.00039041,120]
[399571237,1766508406649,-6773.0,0.00039041,120]
[399571238,1766508406684,-6773.0,0.00039041,120]
[399571239,1766508406720,-6773.0,0.00039041,120]
[399571240,1766508406757,-6773.0,0.00039041,120]
[399571241,1766508406794,-6773.0,0.00039041,120]
[399571242,1766508406830,-6773.0,0.00039041,120]
[399571243,1766508406865,-6773.0,0.00039041,120]
[399571244,1766508406903,-6773.0,0.00039041,120]
[399571245,1766508406945,-6773.0,0.00039041,120]
[399571246,1766508406987,-208.51,0.00039384,120]
[399571247,1766508407024,-1000.0,0.000394,120]
[399571248,1766508407061,-631.01110241,0.000396,120]
[399571249,1766508407097,-500.0,0.00039726,120]
[399571250,1766508407131,-500.0,0.00039749,120]
[399571251,1766508407166,-500.0,0.00039772,120]
[399571252,1766508407201,-500.0,0.00039795,120]
[399571253,1766508407236,-464.41531203,0.000398,120]
[399571254,1766508407295,-3995.73039243,0.000398,120]
[399571255,1766508407357,-500.0,0.00039817,120]
[399571256,1766508407413,-500.0,0.0003984,120]
[399571257,1766508407473,-500.0,0.00039863,120]
[399571258,1766508407535,-500.0,0.00039886,120]
[399571259,1766508407590,-153.35469635,0.000399,120]
[399571260,1766508407645,-153.35469635,0.000399,120]
[399571261,1766508407702,-153.35469635,0.000399,120]
[399571262,1766508407760,-153.35469635,0.000399,120]
[399571263,1766508407826,-153.35469635,0.000399,120]
[399571264,1766508407884,-153.35469635,0.000399,120]
[399571265,1766508407941,-153.35469635,0.000399,120]
[399571266,1766508408000,-153.35469635,0.000399,120]
[399571267,1766508408057,-153.35469635,0.000399,120]
[399571268,1766508408111,-153.35469635,0.000399,120]
[399571269,1766508408167,-153.35469635,0.000399,120]
[399571270,1766508408224,-153.35469635,0.000399,120]
[399571271,1766508408283,-153.35469635,0.000399,120]
[399571272,1766508408341,-153.35469635,0.000399,120]
[399571273,1766508408399,-153.35469635,0.000399,120]
[399571274,1766508408456,-153.35469635,0.000399,120]
[399571275,1766508408512,-153.35469635,0.000399,120]
[399571276,1766508408568,-151.29,0.00039905,120]
[399571277,1766508408624,-500.0,0.00039909,120]
[399571278,1766508408678,-500.0,0.00039932,120]
[399571279,1766508408736,-168.62,0.0003994,120]
[399571280,1766508408793,-288.0,0.00039946,90]
[399571281,1766508408848,-500.0,0.00039954,120]
[399571282,1766508408902,-500.0,0.00039977,120]
[399571283,1766508408961,-30000.0,0.0004,60]
[399571284,1766508409019,-30000.0,0.0004,60]
[399571285,1766508409074,-30000.0,0.0004,60]
[399571286,1766508409127,-30000.0,0.0004,60]
[399571289,1766508409184,-30000.0,0.0004,60]
[399571290,1766508409241,-30000.0,0.0004,60]
[399571291,1766508409297,-39482.89452221,0.0004,60]
[399571292,1766508409353,-805.34548842,0.0004,120]
[399571293,1766508409408,-1632.015642,0.0004,120]
[399571294,1766508409464,-193.7006195,0.0004,120]
[399571295,1766508409517,-1155.83810225,0.0004,120]
[399571296,1766508409570,-305.67002272,0.0004,120]
[399571297,1766508409620,-167.0,0.0004,120]
[399571298,1766508409675,-179.0,0.0004,120]
[399571299,1766508409724,-200.0,0.0004,120]
[399571300,1766508409776,-200.0,0.0004,120]
[399571301,1766508409827,-500.0,0.0004,120]
[399571302,1766508409877,-195.20401844,0.0004,120]
[399571303,1766508409926,-150.0,0.0004,60]
[399571304,1766508410297,-2499.99,0.0004,120]
[399571305,1766508410336,-771.09,0.0004,120]
[399571306,1766508410374,-578.66,0.0004,120]
[399571307,1766508410410,-2500.0,0.0004,120]
[399571308,1766508410452,-151.29,0.00040005,120]
[399571309,1766508410489,-168.62,0.0004004,120]
[399571310,1766508410523,-151.29,0.00040105,120]
[399571311,1766508410555,-168.62,0.0004014,120]
[399571312,1766508410590,-151.29,0.00040205,120]
[399571313,1766508410624,-168.62,0.0004024,120]
[399571314,1766508410659,-288.0,0.00040281,90]
[399571315,1766508410694,-151.29,0.00040305,120]
[399571316,1766508410732,-168.62,0.0004034,120]
[399571317,1766508410768,-151.29,0.00040405,120]
[399571318,1766508410803,-168.62,0.0004044,120]
[399571319,1766508410836,-2500.0,0.000405,120]
[399571320,1766508410870,-151.29,0.00040505,120]
[399571321,1766508410904,-168.63478851,0.0004054,120]
[399571322,1766508410940,-2243.93,0.00040547,120]
[399571323,1766508410975,-167.0,0.000406,120]
[399571324,1766508411010,-179.0,0.000406,120]
[399571325,1766508411045,-151.29,0.00040605,120]
[399571326,1766508411077,-5485.0,0.000407,117]
[399571327,1766508411111,-151.29,0.00040705,120]
[399571328,1766508411145,-150.0,0.00040777,120]
[399571329,1766508411186,-151.29,0.00040805,120]
[399571330,1766508411229,-151.29,0.00040905,120]
[399571331,1766508411269,-150.0,0.00040992,120]
[399571332,1766508411307,-21008.80064309,0.00041,120]
[399571333,1766508411343,-220.11,0.00041,120]
[399571334,1766508411379,-2000.0,0.00041,60]
[399571335,1766508411416,-1378.79346333,0.00041,120]
[399571336,1766508411452,-500.0,0.00041,120]
[399571337,1766508411487,-47579.08,0.00041,120]
[399571338,1766508411520,-150.0,0.00041,60]
[399571339,1766508411554,-2500.0,0.00041,120]
[399571340,1766508411587,-151.29,0.00041005,120]
[399571341,1766508411620,-150.0,0.00041014,120]
[399571342,1766508411653,-354849.43963196,0.0004109,60]
[399571343,1766508411688,-500.0,0.00041095,120]
[399571344,1766508411722,-500.0,0.00041095,120]
[399571345,1766508411755,-500.0,0.00041095,120]
[399571346,1766508411789,-519.79976646,0.00041095,120]
[399571347,1766508411822,-2508.28,0.00041096,120]
[399571348,1766508411855,-1664.51,0.00041096,120]
[399571349,1766508411894,-151.0,0.00041096,120]
[399571350,1766508411927,-151.0,0.00041096,120]
[399571351,1766508411961,-151.0,0.00041096,120]
[399571352,1766508411996,-151.0,0.00041096,120]
[399571353,1766508412035,-151.0,0.00041096,120]
[399571354,1766508412077,-151.0,0.00041096,120]
[399571355,1766508412116,-151.0,0.00041096,120]
[399571356,1766508412153,-151.0,0.00041096,120]
[399571357,1766508412190,-151.0,0.00041096,120]
[399571358,1766508412230,-253.757506,0.00041096,120]
[399571359,1766508412268,-151.0,0.00041096,120]
[399571360,1766508412305,-151.0,0.00041096,120]
[399571361,1766508412342,-151.0,0.00041096,120]
[399571362,1766508412378,-151.0,0.00041096,120]
[399571363,1766508412414,-151.0,0.00041096,120]
[399571364,1766508412448,-151.0,0.00041096,120]
[399571365,1766508412480,-151.0,0.00041096,120]
[399571366,1766508412513,-151.0,0.00041096,120]
[399571367,1766508412545,-151.0,0.00041096,120]
[399571368,1766508412579,-245.5,0.00041096,120]
[399571369,1766508412614,-355.215,0.00041096,95]
[399571370,1766508412646,-810.84624939,0.00041096,78]
[399571371,1766508412679,-524.08,0.000411,120]
[399571372,1766508412712,-167.0,0.000411,120]
[399571373,1766508412745,-179.0,0.000411,120]
[399571374,1766508412777,-151.29,0.00041105,120]
[399571375,1766508412810,-150.0,0.00041153,120]
[399571376,1766508412842,-151.29,0.00041205,120]
[399571377,1766508412874,-150.0,0.00041274,120]
[399571378,1766508412910,-151.29,0.00041305,120]
[399571379,1766508412948,-150.0,0.00041308,120]
[399571380,1766508412986,-200.0,0.00041321,120]
[399571381,1766508413026,-2284.45352546,0.0004133,120]
[399571382,1766508413063,-5000.0,0.00041397,120]
[399571383,1766508413098,-3499.80124272,0.00041397,120]
[399571384,1766508413135,-1000.0,0.000414,120]
[399571385,1766508413174,-151.29,0.00041405,120]
[399571386,1766508413213,-150.0,0.00041406,120]
[399571387,1766508413251,-1317.18299665,0.00041414,120]
[399571388,1766508413292,-4411.12207049,0.0004142,120]
[399571389,1766508413331,-2500.0,0.000415,120]
[399571390,1766508413374,-151.29,0.00041505,120]
[399571391,1766508413417,-150.0,0.00041521,120]
[399571392,1766508413460,-1448.0,0.0004155,120]
[399571393,1766508413500,-150.0,0.00041576,120]
[399571394,1766508413537,-1564.92,0.000416,120]
[399571395,1766508413824,-1564.92,0.000416,120]
[399571396,1766508413865,-1564.92,0.000416,120]
[399571397,1766508413913,-151.29,0.00041605,120]
[399571398,1766508413955,-150.0,0.00041664,120]
[399571399,1766508413996,-167.0,0.000417,120]
[399571400,1766508414036,-179.0,0.000417,120]
[399571401,1766508414078,-151.29,0.00041705,120]
[399571402,1766508414118,-1579.6010249,0.000418,120]
[399571403,1766508414158,-3300.0,0.000418,120]
[399571404,1766508414201,-151.29,0.00041805,120]
[399571405,1766508414242,-470.91557881,0.0004188,120]
[399571406,1766508414284,-151.29,0.00041905,120]
[399571407,1766508414325,-392.27443932,0.00041999,120]
[399571408,1766508414366,-2433.82204066,0.00042,120]
[399571409,1766508414406,-424.0,0.00042,120]
[399571410,1766508414444,-1000.0,0.00042,120]
[399571411,1766508414485,-51153.28873784,0.00042,120]
[399571412,1766508414524,-673.30060075,0.00042,120]
[399571413,1766508414568,-415.0,0.00042,120]
[399571414,1766508414606,-1052.0,0.00042,120]
[399571415,1766508414645,-200.0,0.00042,120]
[399571416,1766508414680,-952.10040062,0.00042,120]
[399571417,1766508414715,-483.53479867,0.00042,120]
[399571418,1766508414749,-152.3,0.00042,120]
[399571419,1766508414784,-150.0,0.00042,120]
[399571420,1766508414819,-150.0,0.00042,120]
[399571421,1766508414852,-150.0,0.00042,120]
[399571422,1766508414887,-500.0,0.00042,120]
[399571423,1766508414924,-150.0,0.00042,60]
[399571424,1766508414961,-41056.85185593,0.00042,120]
[399571425,1766508414998,-500.0,0.00042,120]
[399571426,1766508415037,-1000.0,0.00042,120]
[399571427,1766508415075,-1000.0,0.00042,120]
[399571428,1766508415111,-1000.0,0.00042,120]
[399571429,1766508415147,-1000.0,0.00042,120]
[399571430,1766508415193,-1000.0,0.00042,120]
[399571431,1766508415234,-778.11192779,0.00042,120]
[399571432,1766508415281,-2500.0,0.00042,120]
[399571433,1766508415322,-151.29,0.00042005,120]
[399571434,1766508415363,-151.29,0.00042105,120]
[399571435,1766508415402,-174.9642448,0.00042121,120]
[399571436,1766508415441,-200.0,0.00042187,120]
[399571437,1766508415480,-167.0,0.000422,120]
[399571438,1766508415519,-179.0,0.000422,120]
[399571439,1766508415557,-151.29,0.00042205,120]
[399571440,1766508415594,-1500.45769828,0.00042251,120]
[399571441,1766508415630,-150.0,0.00042278,60]
[399571442,1766508415667,-150.0,0.00042278,60]
[399571443,1766508415705,-288.0,0.00042295,90]
[399571444,1766508415750,-1038.796711,0.000423,120]
[399571445,1766508415804,-699.32938721,0.000423,120]
[399571446,1766508415853,-151.29,0.00042305,120]
[399571447,1766508415893,-472.0,0.00042313,120]
[399571448,1766508415932,-950.0,0.000424,120]
[399571449,1766508415976,-151.29,0.00042405,120]
[399571450,1766508416017,-150.0,0.00042459,120]
[399571451,1766508416056,-2243.93,0.00042465,120]
[399571452,1766508416096,-959.92031783,0.000425,120]
[399571453,1766508416136,-500.0,0.000425,120]
[399571454,1766508416177,-2500.0,0.000425,120]
[399571455,1766508416219,-151.29,0.00042505,120]
[399571456,1766508416262,-225.78397315,0.00042568,120]
[399571457,1766508416305,-150.0,0.000426,120]
[399571458,1766508416347,-246.0638431,0.000426,120]
[399571459,1766508416394,-500.0,0.00042602,120]
[399571460,1766508416435,-500.0,0.00042602,120]
[399571461,1766508416474,-500.0,0.00042602,120]
[399571462,1766508416512,-500.0,0.00042602,120]
[399571463,1766508416550,-234.19997982,0.00042602,120]
[399571464,1766508416589,-151.29,0.00042605,120]
[399571465,1766508416626,-150.0,0.00042628,120]
[399571466,1766508416662,-600.0,0.00042659,60]
[399571467,1766508416696,-300.0,0.00042659,60]
[399571468,1766508416730,-500.0,0.00042659,60]
[399571469,1766508416764,-835.5818417,0.00042676,120]
[399571470,1766508416799,-1000.0,0.00042689,120]
[399571471,1766508416833,-1000.0,0.00042689,120]
[399571472,1766508416867,-1000.0,0.00042689,120]
[399571473,1766508416902,-1000.0,0.00042689,120]
[399571474,1766508416942,-1000.0,0.00042689,120]
[399571475,1766508416981,-1000.0,0.00042689,120]
[399571476,1766508417019,-1000.0,0.00042689,120]
[399571477,1766508417059,-1000.0,0.00042689,120]
[399571478,1766508417097,-1000.0,0.00042689,120]
[399571479,1766508417135,-241.82448343,0.00042689,120]
[399571480,1766508417174,-159.74,0.00042691,120]
[399571481,1766508417214,-150.0,0.000427,120]
[399571482,1766508417262,-151.29,0.00042705,120]
[399571484,1766508418894,-150.0,0.00042777,120]
[399571485,1766508418937,-635385.87022099,0.000428,120]
[399571486,1766508418980,-5018.0,0.000428,60]
[399571487,1766508419023,-167.0,0.000428,120]
[399571488,1766508419065,-179.0,0.000428,120]
[399571489,1766508419108,-151.29,0.00042805,120]
[399571490,1766508419148,-7559.0071995,0.00042901,120]
[399571491,1766508419196,-151.29,0.00042905,120]
[399571492,1766508419240,-150.0,0.00042948,120]
[399571493,1766508419287,-150.0,0.00042949,120]
[399571494,1766508419330,-2000.0,0.00043,60]
[399571495,1766508419372,-1000.0,0.00043,120]
[399571496,1766508419417,-1476.7632766,0.00043,120]
[399571497,1766508419458,-295.11485204,0.00043,120]
[399571498,1766508419498,-448.800047,0.00043,120]
[399571499,1766508419536,-150.0,0.00043,60]
[399571500,1766508419575,-500.0,0.00043,120]
[399571501,1766508419612,-2500.0,0.00043,120]
[399571502,1766508419653,-151.29,0.00043005,120]
[399571503,1766508419694,-204.44,0.00043014,120]
[399571504,1766508419737,-150.0,0.00043031,120]
[399571505,1766508419777,-200.0,0.00043053,120]
[399571506,1766508419817,-314.47369479,0.000431,120]
[399571507,1766508419860,-151.29,0.00043105,120]
[399571508,1766508419904,-150.0,0.00043176,120]
[399571509,1766508419946,-151.29,0.00043205,120]
[399571510,1766508419993,-167.0,0.000433,120]
[399571511,1766508420035,-179.0,0.000433,120]
[399571512,1766508420081,-151.29,0.00043305,120]
[399571513,1766508420126,-208.51,0.00043322,120]
[399571514,1766508420176,-150.0,0.00043351,120]
[399571515,1766508420226,-151.29,0.00043405,120]
[399571516,1766508420271,-500.0,0.000435,120]
[399571517,1766508420322,-151.29,0.00043505,120]
[399571518,1766508420369,-150.0,0.00043534,120]
[399571519,1766508420414,-1444.0,0.00043562,120]
[399571520,1766508420462,-150.0,0.000436,120]
[399571521,1766508420506,-151.29,0.00043605,120]
[399571522,1766508420547,-150.0,0.0004364,120]
[399571523,1766508420585,-484.11480027,0.000437,120]
[399571524,1766508420621,-151.29,0.00043705,120]
[399571525,1766508420676,-500.0,0.00043755,60]
[399571526,1766508420716,-150.0,0.00043766,120]
[399571527,1766508420752,-891.88,0.000438,120]
[399571528,1766508420789,-151.29,0.00043805,120]
[399571529,1766508420826,-150.0,0.00043834,120]
[399571530,1766508420864,-500.0,0.00043835,120]
[399571531,1766508420900,-500.0,0.00043835,120]
[399571532,1766508420938,-357.46583831,0.00043835,120]
[399571533,1766508420979,-2725.27,0.00043836,120]
[399571534,1766508421017,-167.0,0.000439,120]
[399571535,1766508421058,-179.0,0.000439,120]
[399571536,1766508421097,-151.29,0.00043905,120]
[399571537,1766508421133,-200.0,0.00043919,120]
[399571538,1766508421181,-150.0,0.0004397,120]
[399571539,1766508421225,-453.91480061,0.00044,120]
[399571540,1766508421269,-200.0,0.00044,120]
[399571541,1766508421314,-158.42679237,0.00044,60]
[399571542,1766508421354,-500.0,0.00044,120]
[399571543,1766508421397,-151.29,0.00044005,120]
[399571544,1766508421438,-151.29,0.00044105,120]
[399571545,1766508421478,-150.0,0.0004413,120]
[399571546,1766508421518,-150.0,0.0004415,120]
[399571547,1766508421558,-151.29,0.00044205,120]
[399571548,1766508421594,-158.84969417,0.0004425,120]
[399571549,1766508421632,-151.29,0.00044305,120]
[399571550,1766508421670,-150.0,0.0004434,120]
[399571551,1766508421712,-150.0,0.00044382,120]
[399571552,1766508421755,-2243.93,0.00044383,120]
[399571553,1766508421795,-167.0,0.000444,120]
[399571554,1766508421841,-179.0,0.000444,120]
[399571555,1766508421882,-151.29,0.00044405,120]
[399571556,1766508421922,-500.0,0.000445,120]
[399571557,1766508421963,-151.29,0.00044505,120]
[399571558,1766508422004,-150.0,0.00044539,120]
[399571559,1766508422047,-150.0,0.00044597,120]
[399571560,1766508422378,-151.29,0.00044605,120]
[399571561,1766508422416,-150.0,0.00044674,120]
[399571562,1766508422454,-151.29,0.00044705,120]
[399571563,1766508422489,-150.0,0.00044705,120]
[399571564,1766508422525,-150.0,0.00044784,120]
[399571565,1766508422560,-200.0,0.00044785,120]
[399571566,1766508422594,-151.29,0.00044805,120]
[399571567,1766508422636,-500.0,0.00044851,60]
[399571568,1766508422685,-336.80790679,0.0004489,120]
[399571569,1766508422731,-272.49,0.00044895,120]
[399571570,1766508422777,-151.29,0.00044905,120]
[399571571,1766508422837,-600.0,0.0004493,60]
[399571572,1766508422887,-600.0,0.0004493,120]
[399571573,1766508422936,-270.12,0.00045,120]
[399571574,1766508422991,-200.0,0.00045,120]
[399571575,1766508423054,-10007.44,0.00045,120]
[399571576,1766508423103,-8589.33,0.00045,120]
[399571577,1766508423152,-2000.0,0.00045,60]
[399571578,1766508423201,-647.6,0.00045,120]
[399571579,1766508423252,-211.3293676,0.00045,120]
[399571580,1766508423313,-225.36177065,0.00045,120]
[399571581,1766508423370,-1002.93378785,0.00045,120]
[399571582,1766508423429,-545.34645142,0.00045,120]
[399571583,1766508423483,-1220.7118519,0.00045,120]
[399571584,1766508423538,-226.74,0.00045,120]
[399571585,1766508423586,-522.0,0.00045,120]
[399571586,1766508423635,-167.0,0.00045,120]
[399571587,1766508423679,-249.79,0.00045,120]
[399571588,1766508423721,-179.0,0.00045,120]
[399571589,1766508423761,-223.0,0.00045,120]
[399571590,1766508423802,-150.0,0.00045,120]
[399571591,1766508423842,-481.0670344,0.00045,120]
[399571592,1766508423881,-415.75377069,0.00045,60]
[399571593,1766508423919,-411.0,0.00045,60]
[399571594,1766508423961,-500.0,0.00045,120]
[399571595,1766508424003,-500.0,0.00045,120]
[399571596,1766508424044,-2000.0,0.00045,120]
[399571597,1766508424088,-600.0,0.00045,120]
[399571598,1766508424129,-196.01916513,0.00045,120]
[399571599,1766508424171,-150.0,0.00045,120]
[399571600,1766508424215,-1764.38543423,0.00045,120]
[399571601,1766508424262,-151.29,0.00045005,120]
[399571602,1766508424314,-151.29,0.00045105,120]
[399571603,1766508424362,-151.29,0.00045205,120]
[399571604,1766508424411,-151.29,0.00045305,120]
[399571605,1766508424460,-151.29,0.00045405,120]
[399571606,1766508424504,-600.0,0.00045478,90]
[399571607,1766508424548,-600.0,0.00045498,60]
[399571608,1766508424592,-167.0,0.000455,120]
[399571609,1766508424638,-179.0,0.000455,120]
[399571610,1766508424682,-500.0,0.000455,120]
[399571611,1766508424728,-151.29,0.00045505,120]
[399571612,1766508424771,-151.29,0.00045605,120]
[399571613,1766508424816,-200.0,0.00045651,120]
[399571614,1766508424859,-151.29,0.00045705,120]
[399571615,1766508424904,-600.0,0.00045752,120]
[399571616,1766508424955,-365.48394819,0.00045752,120]
[399571617,1766508425002,-626.12181632,0.000458,120]
[399571618,1766508425048,-171.89054975,0.000458,120]
[399571619,1766508425092,-215.73340243,0.000458,120]
[399571620,1766508425142,-175.43156713,0.000458,120]
[399571621,1766508425193,-1089.83387802,0.000458,120]
[399571622,1766508425243,-190.02,0.000458,120]
[399571623,1766508425291,-198.44706585,0.000458,120]
[399571624,1766508425338,-217.96204998,0.000458,120]
[399571625,1766508425387,-151.29,0.00045805,120]
[399571626,1766508425439,-151.29,0.00045905,120]
[399571627,1766508425487,-500.0,0.00045947,60]
[399571628,1766508425538,-16113.53,0.00045985,120]
[399571629,1766508425590,-200.0,0.00046,120]
[399571630,1766508425639,-1272.0,0.00046,60]
[399571631,1766508425684,-21780.22825752,0.00046,120]
[399571632,1766508425743,-485.51230304,0.00046,120]
[399571633,1766508425810,-557.50461299,0.00046,120]
[399571634,1766508425874,-500.0,0.00046,120]
[399571635,1766508425927,-151.29,0.00046005,120]
[399571636,1766508425994,-619.60887721,0.00046027,120]
[399571637,1766508426044,-167.0,0.000461,120]
[399571638,1766508426092,-179.0,0.000461,120]
[399571639,1766508426143,-151.29,0.00046105,120]
[399571640,1766508426190,-151.95821212,0.00046193,120]
[399571641,1766508426242,-151.29,0.00046205,120]
[399571642,1766508426293,-600.0,0.000463,60]
[399571643,1766508426342,-250.0,0.000463,60]
[399571644,1766508426393,-2243.93,0.00046301,120]
[399571645,1766508426445,-151.29,0.00046305,120]
[399571646,1766508426496,-151.76627562,0.00046405,120]
[399571647,1766508426540,-278.54352916,0.0004649,120]
[399571648,1766508426585,-500.0,0.000465,120]
[399571649,1766508426629,-200.0,0.00046517,120]
[399571650,1766508426859,-201.93286098,0.00046574,120]
[399571651,1766508426904,-500.0,0.00046574,120]
[399571652,1766508426948,-9344.93057478,0.00046574,120]
[399571653,1766508426995,-500.0,0.00046574,120]
[399571654,1766508427042,-600.0,0.00046574,120]
[399571655,1766508427081,-500.0,0.00046574,120]
[399571656,1766508427123,-1108.0,0.00046574,120]
[399571657,1766508427165,-361.84883392,0.00046574,120]
[399571658,1766508427213,-500.0,0.00046574,120]
[399571659,1766508427255,-500.0,0.00046574,120]
[399571660,1766508427303,-500.0,0.00046574,120]
[399571661,1766508427351,-160.57007686,0.00046574,120]
[399571662,1766508427394,-1000.0,0.00046574,120]
[399571663,1766508427441,-250.0,0.00046574,120]
[399571664,1766508427485,-250.0,0.00046574,120]
[399571665,1766508427532,-1500.0,0.00046574,120]
[399571666,1766508427578,-252.69785878,0.00046574,120]
[399571667,1766508427618,-201.93286098,0.00046574,120]
[399571668,1766508427664,-151.0,0.00046574,120]
[399571669,1766508427712,-553.64373807,0.00046574,120]
[399571670,1766508427762,-151.0,0.00046574,120]
[399571671,1766508427815,-695.39793187,0.00046574,120]
[399571672,1766508427866,-151.0,0.00046574,120]
[399571673,1766508427914,-250.0,0.00046574,120]
[399571674,1766508427965,-250.0,0.00046574,120]
[399571675,1766508428020,-500.0,0.00046574,120]
[399571676,1766508428077,-167.0,0.000466,120]
[399571677,1766508428128,-179.0,0.000466,120]
[399571678,1766508428182,-2000.0,0.00047,60]
[399571679,1766508428235,-252.88921901,0.00047,120]
[399571680,1766508428286,-424.51419979,0.00047,120]
[399571681,1766508428334,-150.0,0.00047,120]
[399571682,1766508428382,-500.0,0.00047,120]
[399571683,1766508428432,-500.0,0.00047043,60]
[399571684,1766508428479,-626.12181632,0.000471,120]
[399571685,1766508428526,-171.89054975,0.000471,120]
[399571686,1766508428572,-175.43156713,0.000471,120]
[399571687,1766508428616,-1089.83387802,0.000471,120]
[399571688,1766508428658,-217.96204998,0.000471,120]
[399571689,1766508428709,-167.0,0.000472,120]
[399571690,1766508428760,-179.0,0.000472,120]
[399571691,1766508428804,-286.42389294,0.00047203,120]
[399571692,1766508428851,-208.51,0.0004726,120]
[399571693,1766508428898,-200.0,0.00047383,120]
[399571694,1766508428944,-288.33481434,0.000475,120]
[399571695,1766508428993,-218.33630955,0.000475,120]
[399571696,1766508429041,-187.78006525,0.0004767,60]
[399571697,1766508429088,-500.0,0.0004767,60]
[399571698,1766508429134,-8565.75555911,0.0004767,60]
[399571699,1766508429183,-500.0,0.0004767,60]
[399571700,1766508429228,-600.0,0.0004767,60]
[399571701,1766508429275,-500.0,0.0004767,60]
[399571702,1766508429323,-194.72792766,0.0004767,120]
[399571703,1766508429370,-500.0,0.0004767,120]
[399571704,1766508429419,-8882.6885148,0.0004767,120]
[399571705,1766508429465,-500.0,0.0004767,120]
[399571706,1766508429509,-1108.0,0.0004767,60]
[399571707,1766508429551,-600.0,0.0004767,120]
[399571708,1766508429595,-500.0,0.0004767,120]
[399571709,1766508429640,-1108.0,0.0004767,120]
[399571710,1766508429683,-250.0,0.0004767,60]
[399571711,1766508429728,-500.0,0.0004767,60]
[399571712,1766508429771,-500.0,0.0004767,60]
[399571713,1766508429814,-250.0,0.0004767,120]
[399571714,1766508430064,-500.0,0.0004767,120]
[399571715,1766508430109,-500.0,0.0004767,120]
[399571716,1766508430154,-500.0,0.0004767,60]
[399571717,1766508430199,-160.0,0.0004767,60]
[399571718,1766508430246,-500.0,0.0004767,120]
[399571719,1766508430293,-160.0,0.0004767,120]
[399571720,1766508430337,-1000.0,0.0004767,60]
[399571721,1766508430380,-1000.0,0.0004767,120]
[399571722,1766508430421,-250.0,0.0004767,60]
[399571723,1766508430463,-250.0,0.0004767,60]
[399571724,1766508430501,-250.0,0.0004767,120]
[399571725,1766508430541,-250.0,0.0004767,120]
[399571726,1766508430583,-1500.0,0.0004767,60]
[399571727,1766508430626,-1500.0,0.0004767,120]